[Event "Titled Tuesday Blitz August 08 Early 2023"]
[White "Sidletskyi, Ivan"]
[Black "Dong Khanh Linh"]
[WhiteFideId "14156024"]
[BlackFideId "12403040"]
[WhiteElo "2516"]
[BlackElo "2320"]
[Result "1-0"]
[Round "2"]
[TimeControl "180+1"]
[Date "2023.08.08"]
[WhiteClock "0:00:07"]
[BlackClock "0:00:03"]
[Board "196"]

1. e4 {[%clk 0:02:58]}  e6 {[%clk 0:02:59]} 2. d4 {[%clk 0:02:58]}  d5 {[%clk 0:03:00]} 3. Nd2 {[%clk 0:02:58]}  c5 {[%clk 0:02:59]} 4. Ngf3 {[%clk 0:02:58]}  cxd4 {[%clk 0:02:58]} 5. Nxd4 {[%clk 0:02:59]}  Nf6 {[%clk 0:02:58]} 6. exd5 {[%clk 0:02:55]}  Qxd5 {[%clk 0:02:57]} 7. N2f3 {[%clk 0:02:49]}  Bc5 {[%clk 0:02:53]} 8. Bf4 {[%clk 0:02:28]}  O-O {[%clk 0:02:21]} 9. Be2 {[%clk 0:01:48]}  a6 {[%clk 0:02:07]} 10. O-O {[%clk 0:01:40]}  b5 {[%clk 0:02:05]} 11. Nb3 {[%clk 0:01:30]}  Qf5 {[%clk 0:01:39]} 12. Qd2 {[%clk 0:00:40]}  Bb6 {[%clk 0:01:30]} 13. Bd3 {[%clk 0:00:26]}  Qd5 {[%clk 0:01:25]} 14. Rad1 {[%clk 0:00:22]}  Bb7 {[%clk 0:01:22]} 15. Qe2 {[%clk 0:00:21]}  Qh5 {[%clk 0:01:20]} 16. Ne5 {[%clk 0:00:18]}  Qh4 {[%clk 0:00:52]} 17. Bg3 {[%clk 0:00:17]}  Qg5 {[%clk 0:00:47]} 18. h4 {[%clk 0:00:15]}  Qh6 {[%clk 0:00:47]} 19. c3 {[%clk 0:00:11]}  Nc6 {[%clk 0:00:46]} 20. Nxc6 {[%clk 0:00:11]}  Bxc6 {[%clk 0:00:47]} 21. Nd4 {[%clk 0:00:12]}  Bd5 {[%clk 0:00:44]} 22. f4 {[%clk 0:00:08]}  Rad8 {[%clk 0:00:25]} 23. Bf2 {[%clk 0:00:08]}  Qxf4 {[%clk 0:00:22]} 24. Nxe6 {[%clk 0:00:09]}  Bxe6 {[%clk 0:00:14]} 25. Bxb6 {[%clk 0:00:08]}  Qg3 {[%clk 0:00:14]} 26. Bxd8 {[%clk 0:00:08]}  Bg4 {[%clk 0:00:14]} 27. Qf2 {[%clk 0:00:07]}  Qxf2+ {[%clk 0:00:14]} 28. Rxf2 {[%clk 0:00:08]}  Bxd1 {[%clk 0:00:08]} 29. Bxf6 {[%clk 0:00:07]}  gxf6 {[%clk 0:00:08]} 30. Rxf6 {[%clk 0:00:07]}  Rd8 {[%clk 0:00:09]} 31. Be4 {[%clk 0:00:07]}  a5 {[%clk 0:00:07]} 32. Rb6 {[%clk 0:00:07]}  Be2 {[%clk 0:00:07]} 33. Rb7 {[%clk 0:00:06]}  Rd1+ {[%clk 0:00:06]} 34. Kf2 {[%clk 0:00:06]}  Bc4 {[%clk 0:00:06]} 35. Ke3 {[%clk 0:00:06]}  Re1+ {[%clk 0:00:04]} 36. Kf4 {[%clk 0:00:06]}  Re2 {[%clk 0:00:03]} 37. Bf3 {[%clk 0:00:06]}  Rxb2 {[%clk 0:00:03]} 38. a3 {[%clk 0:00:06]}  Rb3 {[%clk 0:00:03]} 39. Kg5 {[%clk 0:00:06]}  Rxc3 {[%clk 0:00:04]} 40. Kf6 {[%clk 0:00:07]}  h6 {[%clk 0:00:04]} 41. Rb8+ {[%clk 0:00:07]}  Kh7 {[%clk 0:00:03]} 42. Be4# {[%clk 0:00:07]} 1-0


[Site "https://www.chess.com"]

[Event "Titled Tuesday Blitz August 08 Early 2023"]
[White "Tikhonov, Viacheslav"]
[Black "Pavlidou, Ekaterini"]
[WhiteFideId "44196407"]
[BlackFideId "4213262"]
[WhiteElo "2510"]
[BlackElo "2320"]
[Result "1-0"]
[Round "2"]
[TimeControl "180+1"]
[Date "2023.08.08"]
[WhiteClock "0:00:15"]
[BlackClock "0:01:09"]
[Board "198"]

1. d4 {[%clk 0:03:00]}  Nf6 {[%clk 0:02:59]} 2. c4 {[%clk 0:03:01]}  e6 {[%clk 0:02:59]} 3. Nf3 {[%clk 0:03:01]}  b6 {[%clk 0:02:57]} 4. g3 {[%clk 0:03:01]}  Bb7 {[%clk 0:02:57]} 5. Bg2 {[%clk 0:03:00]}  c5 {[%clk 0:02:57]} 6. d5 {[%clk 0:02:59]}  exd5 {[%clk 0:02:57]} 7. Nh4 {[%clk 0:03:00]}  Na6 {[%clk 0:02:53]} 8. Nc3 {[%clk 0:02:55]}  g6 {[%clk 0:02:29]} 9. Bg5 {[%clk 0:02:49]}  Be7 {[%clk 0:02:25]} 10. Bh6 {[%clk 0:02:02]}  Ng4 {[%clk 0:02:22]} 11. Bf4 {[%clk 0:01:13]}  g5 {[%clk 0:02:17]} 12. e3 {[%clk 0:00:47]}  h5 {[%clk 0:02:13]} 13. Nf5 {[%clk 0:00:44]}  gxf4 {[%clk 0:02:08]} 14. O-O {[%clk 0:00:39]}  fxe3 {[%clk 0:01:51]} 15. fxe3 {[%clk 0:00:35]}  Bf6 {[%clk 0:01:41]} 16. Nd6+ {[%clk 0:00:34]}  Kf8 {[%clk 0:01:36]} 17. Nxb7 {[%clk 0:00:35]}  Qc7 {[%clk 0:01:21]} 18. Nxd5 {[%clk 0:00:34]}  Qxb7 {[%clk 0:01:21]} 19. Nxf6 {[%clk 0:00:33]}  Qxg2+ {[%clk 0:01:21]} 20. Kxg2 {[%clk 0:00:30]}  Nxe3+ {[%clk 0:01:21]} 21. Kg1 {[%clk 0:00:29]}  Nxd1 {[%clk 0:01:21]} 22. Raxd1 {[%clk 0:00:25]}  Nb8 {[%clk 0:01:19]} 23. Rde1 {[%clk 0:00:21]}  Nc6 {[%clk 0:01:17]} 24. Nxd7+ {[%clk 0:00:21]}  Kg7 {[%clk 0:01:16]} 25. Nf6 {[%clk 0:00:20]}  Rh6 {[%clk 0:01:14]} 26. Nd5 {[%clk 0:00:19]}  Re6 {[%clk 0:01:13]} 27. Rxe6 {[%clk 0:00:13]}  fxe6 {[%clk 0:01:14]} 28. Nc7 {[%clk 0:00:14]}  e5 {[%clk 0:01:12]} 29. Nxa8 {[%clk 0:00:13]}  Nd4 {[%clk 0:01:10]} 30. Rf2 {[%clk 0:00:12]}  e4 {[%clk 0:01:10]} 31. Nc7 {[%clk 0:00:11]}  e3 {[%clk 0:01:10]} 32. Rf1 {[%clk 0:00:07]}  e2 {[%clk 0:01:09]} 33. Re1 {[%clk 0:00:06]}  Nf3+ {[%clk 0:01:07]} 34. Kf2 {[%clk 0:00:07]}  Nxe1 {[%clk 0:01:08]} 35. Kxe1 {[%clk 0:00:08]}  Kf6 {[%clk 0:01:08]} 36. Kxe2 {[%clk 0:00:08]}  Ke5 {[%clk 0:01:09]} 37. Ke3 {[%clk 0:00:08]}  Kd6 {[%clk 0:01:08]} 38. Nb5+ {[%clk 0:00:08]}  Ke5 {[%clk 0:01:08]} 39. Nxa7 {[%clk 0:00:09]}  Kd6 {[%clk 0:01:08]} 40. Nb5+ {[%clk 0:00:10]}  Ke5 {[%clk 0:01:09]} 41. h3 {[%clk 0:00:11]}  Kf5 {[%clk 0:01:10]} 42. Kf3 {[%clk 0:00:11]}  Kg5 {[%clk 0:01:09]} 43. g4 {[%clk 0:00:12]}  hxg4+ {[%clk 0:01:09]} 44. hxg4 {[%clk 0:00:13]}  Kg6 {[%clk 0:01:10]} 45. a3 {[%clk 0:00:13]}  Kg5 {[%clk 0:01:10]} 46. b4 {[%clk 0:00:14]}  Kg6 {[%clk 0:01:10]} 47. bxc5 {[%clk 0:00:15]}  bxc5 {[%clk 0:01:09]} 48. a4 {[%clk 0:00:15]} 1-0


[Site "https://www.chess.com"]

[Event "Titled Tuesday Blitz August 08 Early 2023"]
[White "reevecanada"]
[Black "Kaminski, Victor"]
[BlackFideId "1131630"]
[WhiteElo "2509"]
[BlackElo "2319"]
[Result "1-0"]
[Round "2"]
[TimeControl "180+1"]
[Date "2023.08.08"]
[WhiteClock "0:01:58"]
[BlackClock "0:00:00"]
[Board "199"]

1. e4 {[%clk 0:03:00]}  e5 {[%clk 0:02:59]} 2. Nf3 {[%clk 0:02:58]}  Nc6 {[%clk 0:02:59]} 3. d4 {[%clk 0:02:56]}  exd4 {[%clk 0:02:58]} 4. Nxd4 {[%clk 0:02:57]}  Nf6 {[%clk 0:02:52]} 5. Nxc6 {[%clk 0:02:55]}  bxc6 {[%clk 0:02:52]} 6. Nd2 {[%clk 0:02:55]}  Bc5 {[%clk 0:02:40]} 7. Be2 {[%clk 0:02:53]}  O-O {[%clk 0:02:36]} 8. e5 {[%clk 0:02:52]}  Nd5 {[%clk 0:02:30]} 9. Nb3 {[%clk 0:02:51]}  Bb6 {[%clk 0:02:21]} 10. c4 {[%clk 0:02:50]}  Re8 {[%clk 0:01:49]} 11. cxd5 {[%clk 0:02:47]}  Rxe5 {[%clk 0:01:48]} 12. O-O {[%clk 0:02:40]}  cxd5 {[%clk 0:01:46]} 13. Bf3 {[%clk 0:02:37]}  c6 {[%clk 0:01:43]} 14. Bf4 {[%clk 0:02:35]}  Re8 {[%clk 0:01:35]} 15. Qd3 {[%clk 0:02:33]}  a5 {[%clk 0:01:29]} 16. Rfe1 {[%clk 0:02:32]}  Ba6 {[%clk 0:01:22]} 17. Qc3 {[%clk 0:02:26]}  a4 {[%clk 0:01:08]} 18. Nc5 {[%clk 0:02:20]}  Bb5 {[%clk 0:01:00]} 19. Nb7 {[%clk 0:02:17]}  Qh4 {[%clk 0:00:54]} 20. Bg3 {[%clk 0:02:12]}  Qh6 {[%clk 0:00:39]} 21. Nd6 {[%clk 0:02:06]}  Rxe1+ {[%clk 0:00:34]} 22. Rxe1 {[%clk 0:02:02]}  Ba6 {[%clk 0:00:02]} 23. Qe5 {[%clk 0:01:59]}  Qg6 {[%clk 0:00:00]} 24. Qe8+ {[%clk 0:01:58]} 1-0


[Site "https://www.chess.com"]

[Event "Titled Tuesday Blitz August 08 Early 2023"]
[White "Ivanova, Karina"]
[Black "Nemec, Jachym"]
[WhiteFideId "24139750"]
[BlackFideId "23716525"]
[WhiteElo "2313"]
[BlackElo "2508"]
[Result "1/2-1/2"]
[Round "2"]
[TimeControl "180+1"]
[Date "2023.08.08"]
[WhiteClock "0:00:10"]
[BlackClock "0:00:11"]
[Board "200"]

1. d4 {[%clk 0:02:58]}  Nf6 {[%clk 0:02:57]} 2. Nf3 {[%clk 0:02:58]}  d5 {[%clk 0:02:54]} 3. c4 {[%clk 0:02:58]}  c6 {[%clk 0:02:53]} 4. Nc3 {[%clk 0:02:58]}  e6 {[%clk 0:02:53]} 5. e3 {[%clk 0:02:58]}  Nbd7 {[%clk 0:02:52]} 6. Qc2 {[%clk 0:02:57]}  Bd6 {[%clk 0:02:51]} 7. b3 {[%clk 0:02:56]}  O-O {[%clk 0:02:51]} 8. Be2 {[%clk 0:02:56]}  e5 {[%clk 0:02:51]} 9. cxd5 {[%clk 0:02:52]}  cxd5 {[%clk 0:02:49]} 10. dxe5 {[%clk 0:02:52]}  Nxe5 {[%clk 0:02:48]} 11. Bb2 {[%clk 0:02:52]}  a6 {[%clk 0:02:40]} 12. O-O {[%clk 0:02:47]}  Be6 {[%clk 0:02:36]} 13. Rac1 {[%clk 0:02:41]}  Rc8 {[%clk 0:02:33]} 14. Qd2 {[%clk 0:02:37]}  Nc6 {[%clk 0:02:14]} 15. Rfd1 {[%clk 0:02:33]}  Bb8 {[%clk 0:02:14]} 16. Nd4 {[%clk 0:02:20]}  Re8 {[%clk 0:02:13]} 17. Bf3 {[%clk 0:02:07]}  Ne5 {[%clk 0:02:09]} 18. Be2 {[%clk 0:01:52]}  h5 {[%clk 0:02:07]} 19. Nxe6 {[%clk 0:01:49]}  fxe6 {[%clk 0:02:06]} 20. e4 {[%clk 0:01:25]}  dxe4 {[%clk 0:01:50]} 21. Qg5 {[%clk 0:01:23]}  Qa5 {[%clk 0:01:41]} 22. h4 {[%clk 0:00:58]}  Rc5 {[%clk 0:01:24]} 23. Qe3 {[%clk 0:00:43]}  Ba7 {[%clk 0:01:13]} 24. Nxe4 {[%clk 0:00:32]}  Rxc1 {[%clk 0:01:10]} 25. Nxf6+ {[%clk 0:00:32]}  gxf6 {[%clk 0:01:10]} 26. Qxc1 {[%clk 0:00:19]}  Rd8 {[%clk 0:00:25]} 27. Rxd8+ {[%clk 0:00:17]}  Qxd8 {[%clk 0:00:26]} 28. Bxe5 {[%clk 0:00:15]}  fxe5 {[%clk 0:00:26]} 29. Qg5+ {[%clk 0:00:14]}  Qxg5 {[%clk 0:00:26]} 30. hxg5 {[%clk 0:00:15]}  h4 {[%clk 0:00:24]} 31. Bh5 {[%clk 0:00:14]}  Kg7 {[%clk 0:00:20]} 32. Kf1 {[%clk 0:00:14]}  Bb6 {[%clk 0:00:20]} 33. Ke2 {[%clk 0:00:13]}  Bd8 {[%clk 0:00:21]} 34. Kf3 {[%clk 0:00:12]}  Bxg5 {[%clk 0:00:20]} 35. Kg4 {[%clk 0:00:12]}  Kf6 {[%clk 0:00:20]} 36. Be8 {[%clk 0:00:11]}  b6 {[%clk 0:00:20]} 37. f3 {[%clk 0:00:11]}  a5 {[%clk 0:00:11]} 38. a4 {[%clk 0:00:10]} 1/2-1/2


[Site "https://www.chess.com"]

[Event "Titled Tuesday Blitz August 08 Early 2023"]
[White "Sala, Giulia"]
[Black "Tomb, Maroun"]
[WhiteFideId "2840451"]
[BlackFideId "5300398"]
[WhiteElo "2310"]
[BlackElo "2508"]
[Result "1-0"]
[Round "2"]
[TimeControl "180+1"]
[Date "2023.08.08"]
[WhiteClock "0:00:27"]
[BlackClock "0:00:00"]
[Board "201"]

1. e4 {[%clk 0:03:00]}  c5 {[%clk 0:02:59]} 2. Nf3 {[%clk 0:03:01]}  d6 {[%clk 0:02:58]} 3. Bb5+ {[%clk 0:02:58]}  Bd7 {[%clk 0:02:58]} 4. Bxd7+ {[%clk 0:02:54]}  Nxd7 {[%clk 0:02:58]} 5. O-O {[%clk 0:02:53]}  g6 {[%clk 0:02:56]} 6. c3 {[%clk 0:02:53]}  Bg7 {[%clk 0:02:56]} 7. Re1 {[%clk 0:02:54]}  Ngf6 {[%clk 0:02:54]} 8. d4 {[%clk 0:02:54]}  O-O {[%clk 0:02:52]} 9. Bg5 {[%clk 0:02:43]}  b6 {[%clk 0:02:34]} 10. Nbd2 {[%clk 0:02:40]}  Qc7 {[%clk 0:02:27]} 11. Nf1 {[%clk 0:02:38]}  e6 {[%clk 0:02:17]} 12. Qd2 {[%clk 0:02:29]}  Rfe8 {[%clk 0:02:12]} 13. Rad1 {[%clk 0:02:03]}  cxd4 {[%clk 0:02:09]} 14. cxd4 {[%clk 0:01:59]}  d5 {[%clk 0:02:10]} 15. Ng3 {[%clk 0:01:49]}  dxe4 {[%clk 0:02:08]} 16. Nxe4 {[%clk 0:01:50]}  Nxe4 {[%clk 0:02:07]} 17. Rxe4 {[%clk 0:01:51]}  Nf6 {[%clk 0:02:06]} 18. Bxf6 {[%clk 0:01:48]}  Bxf6 {[%clk 0:02:07]} 19. Rc1 {[%clk 0:01:47]}  Qd6 {[%clk 0:02:04]} 20. Ne5 {[%clk 0:01:42]}  Rad8 {[%clk 0:02:02]} 21. Qf4 {[%clk 0:01:38]}  Bxe5 {[%clk 0:01:42]} 22. dxe5 {[%clk 0:01:39]}  Qd5 {[%clk 0:01:35]} 23. h4 {[%clk 0:01:35]}  h5 {[%clk 0:01:34]} 24. Rc7 {[%clk 0:01:33]}  Rd7 {[%clk 0:01:29]} 25. Rxd7 {[%clk 0:01:14]}  Qxd7 {[%clk 0:01:28]} 26. Rd4 {[%clk 0:01:14]}  Qc7 {[%clk 0:01:24]} 27. Rc4 {[%clk 0:01:12]}  Qe7 {[%clk 0:01:23]} 28. g3 {[%clk 0:01:09]}  Rd8 {[%clk 0:01:23]} 29. Qc1 {[%clk 0:01:07]}  Qd7 {[%clk 0:01:18]} 30. Rc7 {[%clk 0:01:05]}  Qa4 {[%clk 0:01:17]} 31. Qg5 {[%clk 0:00:50]}  Qd1+ {[%clk 0:01:01]} 32. Kh2 {[%clk 0:00:49]}  a5 {[%clk 0:00:58]} 33. Rxf7 {[%clk 0:00:36]}  Kxf7 {[%clk 0:00:48]} 34. Qf6+ {[%clk 0:00:36]}  Ke8 {[%clk 0:00:43]} 35. Qxe6+ {[%clk 0:00:36]}  Kf8 {[%clk 0:00:44]} 36. Qf6+ {[%clk 0:00:36]}  Ke8 {[%clk 0:00:43]} 37. e6 {[%clk 0:00:25]}  Rc8 {[%clk 0:00:28]} 38. Qf7+ {[%clk 0:00:25]}  Kd8 {[%clk 0:00:29]} 39. e7+ {[%clk 0:00:26]}  Kc7 {[%clk 0:00:29]} 40. e8=Q+ {[%clk 0:00:26]}  Kb8 {[%clk 0:00:30]} 41. Qe5+ {[%clk 0:00:26]}  Ka8 {[%clk 0:00:00]} 42. Qfd5+ {[%clk 0:00:27]} 1-0


[Site "https://www.chess.com"]

[Event "Titled Tuesday Blitz August 08 Early 2023"]
[White "Gavilan Diaz, Mario"]
[Black "Stangl, Anita, Dr."]
[WhiteFideId "2260905"]
[BlackFideId "4608801"]
[WhiteElo "2503"]
[BlackElo "2307"]
[Result "1-0"]
[Round "2"]
[TimeControl "180+1"]
[Date "2023.08.08"]
[WhiteClock "0:00:24"]
[BlackClock "0:00:00"]
[Board "205"]

1. d4 {[%clk 0:03:00]}  e6 {[%clk 0:03:00]} 2. c4 {[%clk 0:03:00]}  d5 {[%clk 0:03:01]} 3. Nc3 {[%clk 0:03:00]}  c6 {[%clk 0:03:01]} 4. e4 {[%clk 0:03:00]}  dxe4 {[%clk 0:03:01]} 5. Nxe4 {[%clk 0:03:00]}  Bb4+ {[%clk 0:03:01]} 6. Bd2 {[%clk 0:03:00]}  Qxd4 {[%clk 0:03:02]} 7. Bxb4 {[%clk 0:03:00]}  Qxe4+ {[%clk 0:03:03]} 8. Be2 {[%clk 0:03:01]}  Nf6 {[%clk 0:03:03]} 9. Nf3 {[%clk 0:02:59]}  a5 {[%clk 0:03:02]} 10. Ba3 {[%clk 0:02:52]}  b6 {[%clk 0:02:50]} 11. Qd6 {[%clk 0:02:24]}  c5 {[%clk 0:02:39]} 12. Qxb6 {[%clk 0:02:23]}  Nbd7 {[%clk 0:02:39]} 13. Qd6 {[%clk 0:02:21]}  Ra6 {[%clk 0:02:09]} 14. Qd2 {[%clk 0:02:21]}  O-O {[%clk 0:02:05]} 15. O-O {[%clk 0:02:21]}  Rb6 {[%clk 0:01:43]} 16. Rfe1 {[%clk 0:02:09]}  Qa8 {[%clk 0:01:43]} 17. Bd3 {[%clk 0:02:02]}  Bb7 {[%clk 0:01:43]} 18. Qf4 {[%clk 0:01:39]}  Bxf3 {[%clk 0:01:33]} 19. Qxf3 {[%clk 0:01:39]}  Qxf3 {[%clk 0:01:33]} 20. gxf3 {[%clk 0:01:40]}  Nh5 {[%clk 0:01:27]} 21. Rad1 {[%clk 0:01:35]}  Ndf6 {[%clk 0:01:21]} 22. b3 {[%clk 0:01:31]}  Rc8 {[%clk 0:01:13]} 23. Re5 {[%clk 0:01:30]}  Nf4 {[%clk 0:01:12]} 24. Rxc5 {[%clk 0:01:29]}  Rxc5 {[%clk 0:00:55]} 25. Bxc5 {[%clk 0:01:30]}  Rc6 {[%clk 0:00:55]} 26. Be3 {[%clk 0:01:30]}  N6h5 {[%clk 0:00:49]} 27. Be4 {[%clk 0:01:29]}  Rc8 {[%clk 0:00:48]} 28. c5 {[%clk 0:01:20]}  f5 {[%clk 0:00:47]} 29. Bb7 {[%clk 0:01:16]}  Rc7 {[%clk 0:00:41]} 30. c6 {[%clk 0:01:15]}  Nd5 {[%clk 0:00:42]} 31. Bd4 {[%clk 0:01:08]}  Kf7 {[%clk 0:00:41]} 32. Be5 {[%clk 0:01:08]}  Re7 {[%clk 0:00:36]} 33. Rc1 {[%clk 0:01:07]}  Nc7 {[%clk 0:00:34]} 34. Bd6 {[%clk 0:01:05]}  Nf6 {[%clk 0:00:28]} 35. Bxe7 {[%clk 0:01:04]}  Kxe7 {[%clk 0:00:29]} 36. Rc5 {[%clk 0:01:02]}  a4 {[%clk 0:00:27]} 37. b4 {[%clk 0:01:01]}  Nfd5 {[%clk 0:00:26]} 38. Ra5 {[%clk 0:00:52]}  Nc3 {[%clk 0:00:23]} 39. a3 {[%clk 0:00:43]}  Kd6 {[%clk 0:00:22]} 40. Rc5 {[%clk 0:00:42]}  N3b5 {[%clk 0:00:18]} 41. Kf1 {[%clk 0:00:37]}  Nxa3 {[%clk 0:00:18]} 42. Ra5 {[%clk 0:00:35]}  Nc2 {[%clk 0:00:04]} 43. Rxa4 {[%clk 0:00:34]}  Kd5 {[%clk 0:00:04]} 44. Ke2 {[%clk 0:00:27]}  Kc4 {[%clk 0:00:00]} 45. Kd2 {[%clk 0:00:24]} 1-0


[Site "https://www.chess.com"]

[Event "Titled Tuesday Blitz August 08 Early 2023"]
[White "Alahakoon, Isuru"]
[Black "Shubenkova, Veronika"]
[WhiteFideId "9900993"]
[BlackFideId "44124040"]
[WhiteElo "2306"]
[BlackElo "2503"]
[Result "0-1"]
[Round "2"]
[TimeControl "180+1"]
[Date "2023.08.08"]
[WhiteClock "0:00:00"]
[BlackClock "0:00:31"]
[Board "206"]

1. Nf3 {[%clk 0:03:00]}  d5 {[%clk 0:02:58]} 2. e3 {[%clk 0:03:01]}  e6 {[%clk 0:02:57]} 3. c4 {[%clk 0:03:01]}  Nf6 {[%clk 0:02:57]} 4. b3 {[%clk 0:03:02]}  Be7 {[%clk 0:02:56]} 5. Bb2 {[%clk 0:03:02]}  O-O {[%clk 0:02:56]} 6. Nc3 {[%clk 0:03:02]}  b6 {[%clk 0:02:57]} 7. cxd5 {[%clk 0:03:01]}  exd5 {[%clk 0:02:57]} 8. d4 {[%clk 0:02:57]}  Bb7 {[%clk 0:02:56]} 9. g3 {[%clk 0:02:53]}  Nbd7 {[%clk 0:02:56]} 10. Bg2 {[%clk 0:02:53]}  Re8 {[%clk 0:02:56]} 11. O-O {[%clk 0:02:52]}  c6 {[%clk 0:02:56]} 12. Ne5 {[%clk 0:02:48]}  Nxe5 {[%clk 0:02:55]} 13. dxe5 {[%clk 0:02:47]}  Nd7 {[%clk 0:02:55]} 14. f4 {[%clk 0:02:46]}  Bc5 {[%clk 0:02:54]} 15. Qf3 {[%clk 0:02:35]}  Nf8 {[%clk 0:02:51]} 16. Kh1 {[%clk 0:02:32]}  a5 {[%clk 0:02:50]} 17. Rad1 {[%clk 0:02:27]}  Qc7 {[%clk 0:02:41]} 18. Ne2 {[%clk 0:02:17]}  Ba6 {[%clk 0:02:39]} 19. f5 {[%clk 0:02:10]}  Rxe5 {[%clk 0:02:30]} 20. Bxe5 {[%clk 0:01:49]}  Qxe5 {[%clk 0:02:30]} 21. Qg4 {[%clk 0:01:11]}  Qxe3 {[%clk 0:02:18]} 22. f6 {[%clk 0:01:03]}  Ng6 {[%clk 0:02:10]} 23. Bf3 {[%clk 0:00:55]}  gxf6 {[%clk 0:02:03]} 24. h4 {[%clk 0:00:54]}  f5 {[%clk 0:02:03]} 25. Qxf5 {[%clk 0:00:51]}  Rf8 {[%clk 0:01:27]} 26. h5 {[%clk 0:00:32]}  Bxe2 {[%clk 0:01:24]} 27. Bxe2 {[%clk 0:00:30]}  Qxe2 {[%clk 0:01:21]} 28. hxg6 {[%clk 0:00:30]}  hxg6 {[%clk 0:01:21]} 29. Qf3 {[%clk 0:00:25]}  Qxa2 {[%clk 0:01:12]} 30. Rde1 {[%clk 0:00:18]}  Qb2 {[%clk 0:01:12]} 31. Re8 {[%clk 0:00:16]}  Qh8+ {[%clk 0:00:57]} 32. Kg2 {[%clk 0:00:15]}  Qb2+ {[%clk 0:00:55]} 33. Kh1 {[%clk 0:00:11]}  Qg7 {[%clk 0:00:53]} 34. Rxf8+ {[%clk 0:00:10]}  Bxf8 {[%clk 0:00:54]} 35. Kg2 {[%clk 0:00:07]}  f5 {[%clk 0:00:44]} 36. Qe2 {[%clk 0:00:05]}  Qf6 {[%clk 0:00:38]} 37. Re1 {[%clk 0:00:04]}  Kg7 {[%clk 0:00:33]} 38. Qe6 {[%clk 0:00:00]}  b5 {[%clk 0:00:31]} 0-1


[Site "https://www.chess.com"]

[Event "Titled Tuesday Blitz August 08 Early 2023"]
[White "Garakov, Mikhael"]
[Black "amanjazu"]
[WhiteFideId "4169034"]
[WhiteElo "2503"]
[BlackElo "2305"]
[Result "0-1"]
[Round "2"]
[TimeControl "180+1"]
[Date "2023.08.08"]
[WhiteClock "0:00:45"]
[BlackClock "0:00:11"]
[Board "207"]

1. e4 {[%clk 0:03:00]}  d5 {[%clk 0:02:53]} 2. exd5 {[%clk 0:03:00]}  Nf6 {[%clk 0:02:53]} 3. d4 {[%clk 0:02:59]}  Bg4 {[%clk 0:02:52]} 4. f3 {[%clk 0:02:51]}  Bf5 {[%clk 0:02:48]} 5. c4 {[%clk 0:02:51]}  c6 {[%clk 0:02:46]} 6. dxc6 {[%clk 0:02:47]}  Nxc6 {[%clk 0:02:19]} 7. Be3 {[%clk 0:02:46]}  e5 {[%clk 0:02:16]} 8. d5 {[%clk 0:02:44]}  Nb4 {[%clk 0:02:15]} 9. Na3 {[%clk 0:02:42]}  Be7 {[%clk 0:01:46]} 10. g4 {[%clk 0:02:42]}  Nxg4 {[%clk 0:01:12]} 11. fxg4 {[%clk 0:02:36]}  Bh4+ {[%clk 0:01:12]} 12. Kd2 {[%clk 0:02:35]}  Nxd5 {[%clk 0:00:55]} 13. gxf5 {[%clk 0:02:08]}  Nxe3+ {[%clk 0:00:20]} 14. Kxe3 {[%clk 0:02:08]}  Qg5+ {[%clk 0:00:17]} 15. Ke2 {[%clk 0:01:09]}  Qg4+ {[%clk 0:00:15]} 16. Kd3 {[%clk 0:01:00]}  O-O-O+ {[%clk 0:00:13]} 17. Kc2 {[%clk 0:00:58]}  Rxd1 {[%clk 0:00:12]} 18. Rxd1 {[%clk 0:00:58]}  Qe4+ {[%clk 0:00:12]} 19. Bd3 {[%clk 0:00:58]}  Qxh1 {[%clk 0:00:13]} 20. Ne2 {[%clk 0:00:57]}  Qxh2 {[%clk 0:00:13]} 21. Nb5 {[%clk 0:00:55]}  e4 {[%clk 0:00:11]} 22. Nd6+ {[%clk 0:00:49]}  Qxd6 {[%clk 0:00:11]} 23. Bxe4 {[%clk 0:00:49]}  Qe5 {[%clk 0:00:11]} 24. Bd3 {[%clk 0:00:47]}  Bf6 {[%clk 0:00:10]} 25. Nc3 {[%clk 0:00:47]}  Qh2+ {[%clk 0:00:10]} 26. Kb3 {[%clk 0:00:47]}  Bxc3 {[%clk 0:00:10]} 27. Kxc3 {[%clk 0:00:47]}  Rd8 {[%clk 0:00:10]} 28. f6 {[%clk 0:00:48]}  Qe5+ {[%clk 0:00:10]} 29. Kb3 {[%clk 0:00:45]}  gxf6 {[%clk 0:00:11]} 0-1


[Site "https://www.chess.com"]

[Event "Titled Tuesday Blitz August 08 Early 2023"]
[White "NicolaiMaxime"]
[Black "Ziatdinov, Raset"]
[BlackFideId "2015323"]
[WhiteElo "2503"]
[BlackElo "2304"]
[Result "0-1"]
[Round "2"]
[TimeControl "180+1"]
[Date "2023.08.08"]
[WhiteClock "0:00:48"]
[BlackClock "0:01:08"]
[Board "208"]

1. e4 {[%clk 0:03:00]}  e6 {[%clk 0:02:59]} 2. b3 {[%clk 0:03:00]}  d5 {[%clk 0:03:00]} 3. Bb2 {[%clk 0:03:01]}  c5 {[%clk 0:02:57]} 4. Nc3 {[%clk 0:02:57]}  Nf6 {[%clk 0:02:55]} 5. Qe2 {[%clk 0:02:54]}  Be7 {[%clk 0:02:51]} 6. exd5 {[%clk 0:02:51]}  exd5 {[%clk 0:02:50]} 7. O-O-O {[%clk 0:02:52]}  Nc6 {[%clk 0:02:45]} 8. h3 {[%clk 0:02:49]}  O-O {[%clk 0:02:44]} 9. g4 {[%clk 0:02:49]}  d4 {[%clk 0:02:41]} 10. Ne4 {[%clk 0:02:49]}  Nd5 {[%clk 0:02:38]} 11. Qf3 {[%clk 0:02:38]}  Qa5 {[%clk 0:02:33]} 12. Kb1 {[%clk 0:02:38]}  Be6 {[%clk 0:02:27]} 13. Bc4 {[%clk 0:02:37]}  Ndb4 {[%clk 0:02:25]} 14. a3 {[%clk 0:02:28]}  Nd5 {[%clk 0:02:05]} 15. Ne2 {[%clk 0:02:18]}  Ne5 {[%clk 0:02:04]} 16. Qg2 {[%clk 0:02:02]}  Nxc4 {[%clk 0:01:53]} 17. bxc4 {[%clk 0:02:03]}  Nb6 {[%clk 0:01:52]} 18. d3 {[%clk 0:02:03]}  Na4 {[%clk 0:01:51]} 19. Nc1 {[%clk 0:02:03]}  b5 {[%clk 0:01:49]} 20. Nb3 {[%clk 0:02:01]}  Qb6 {[%clk 0:01:47]} 21. cxb5 {[%clk 0:01:57]}  Nxb2 {[%clk 0:01:43]} 22. Kxb2 {[%clk 0:01:57]}  Qxb5 {[%clk 0:01:44]} 23. f4 {[%clk 0:01:57]}  a5 {[%clk 0:01:40]} 24. f5 {[%clk 0:01:52]}  Bxb3 {[%clk 0:01:38]} 25. cxb3 {[%clk 0:01:53]}  a4 {[%clk 0:01:38]} 26. Qc2 {[%clk 0:01:45]}  Rfb8 {[%clk 0:01:38]} 27. Nd2 {[%clk 0:01:32]}  axb3 {[%clk 0:01:30]} 28. Qc4 {[%clk 0:01:32]}  Qa5 {[%clk 0:01:28]} 29. Nb1 {[%clk 0:01:29]}  Rb4 {[%clk 0:01:20]} 30. axb4 {[%clk 0:01:16]}  Qa2+ {[%clk 0:01:19]} 31. Kc1 {[%clk 0:01:16]}  Bg5+ {[%clk 0:01:20]} 32. Rd2 {[%clk 0:01:13]}  Bxd2+ {[%clk 0:01:11]} 33. Nxd2 {[%clk 0:01:12]}  b2+ {[%clk 0:01:10]} 34. Kd1 {[%clk 0:01:06]}  b1=Q+ {[%clk 0:01:10]} 35. Nxb1 {[%clk 0:01:04]}  Qxb1+ {[%clk 0:01:10]} 36. Ke2 {[%clk 0:01:04]}  Qxh1 {[%clk 0:01:10]} 37. bxc5 {[%clk 0:01:03]}  Qg2+ {[%clk 0:01:08]} 38. Kd1 {[%clk 0:00:48]}  Ra1+ {[%clk 0:01:08]} 0-1


[Site "https://www.chess.com"]